fUST/lending_fUST_20241106
["ID","MTS","AMOUNT","RATE_DAILY","PERIOD"]
[341354780,1730825142616,-199.55,0.00041085,10]
[341354781,1730825142636,-150.01,0.00041094,2]
[341354782,1730825142656,-1540.33130158,0.00041094,2]
[341354783,1730825142676,-600.0,0.00041094,2]
[341354784,1730825142695,-500.0,0.00041095,14]
[341354785,1730825142715,-500.0,0.00041095,14]
[341354786,1730825142739,-505.23967982,0.00041095,14]
[341354787,1730825142760,-500.0,0.00041095,14]
[341354788,1730825142780,-500.0,0.00041095,14]
[341354789,1730825142800,-631.2282846,0.00041095,14]
[341354790,1730825142820,-500.0,0.00041095,14]
[341354791,1730825142841,-500.0,0.00041095,14]
[341354792,1730825142862,-500.0,0.00041095,14]
[341354793,1730825142882,-500.0,0.00041095,14]
[341354794,1730825142902,-367.49931953,0.00041095,14]
[341354795,1730825142923,-262.98341012,0.00041095,7]
[341354796,1730825142943,-500.0,0.00041095,14]
[341354797,1730825142964,-224.17,0.00041095,14]
[341354798,1730825142988,-500.0,0.00041095,14]
[341354799,1730825143007,-500.0,0.00041095,14]
[341354800,1730825143027,-500.0,0.00041095,14]
[341354801,1730825143047,-500.0,0.00041095,14]
[341354802,1730825143068,-505.38723861,0.00041095,14]
[341354803,1730825143087,-512.49756428,0.00041095,14]
[341354804,1730825143107,-500.0,0.00041095,14]
[341354805,1730825143128,-505.59547646,0.00041095,14]
[341354806,1730825143150,-503.58636151,0.00041095,14]
[341354807,1730825143174,-500.0,0.00041095,14]
[341354808,1730825143195,-507.48843635,0.00041095,14]
[341354809,1730825143214,-500.0,0.00041095,14]
[341354810,1730825143237,-500.0,0.00041095,14]
[341354811,1730825143257,-517.50886468,0.00041095,14]
[341354812,1730825143277,-501.8508349,0.00041095,14]
[341354813,1730825143296,-500.0,0.00041095,14]
[341354814,1730825143316,-500.0,0.00041095,14]
[341354815,1730825143336,-500.0,0.00041095,14]
[341354816,1730825143356,-507.24807494,0.00041095,14]
[341354817,1730825143377,-500.0,0.00041095,14]
[341354818,1730825143396,-500.0,0.00041095,14]
[341354819,1730825143416,-504.36408439,0.00041095,14]
[341354820,1730825143436,-500.0,0.00041095,14]
[341354821,1730825143459,-341.2628055,0.00041095,14]
[341354822,1730825143483,-511.048579,0.00041095,14]
[341354823,1730825143503,-502.20581122,0.00041095,14]
[341354824,1730825143524,-516.63620505,0.00041095,14]
[341354825,1730825143546,-198.99914669,0.00041095,14]
[341354826,1730825143567,-500.0,0.00041095,14]
[341354827,1730825143587,-500.0,0.00041095,14]
[341354828,1730825143608,-503.97388739,0.00041095,14]
[341354829,1730825143629,-506.3083049,0.00041095,14]
[341354830,1730825143649,-500.0,0.00041095,14]
[341354831,1730825143670,-508.09685521,0.00041095,14]
[341354832,1730825143690,-500.0,0.00041095,14]
[341354833,1730825143710,-500.0,0.00041095,14]
[341354834,1730825143732,-500.0,0.00041095,14]
[341354835,1730825143752,-583.13717935,0.00041095,14]
[341354836,1730825143772,-500.0,0.00041095,14]
[341354837,1730825143793,-502.22498155,0.00041095,14]
[341354838,1730825143813,-500.0,0.00041095,14]
[341354839,1730825143834,-521.55904902,0.00041095,14]
[341354840,1730825143855,-500.0,0.00041095,14]
[341354841,1730825143875,-510.19292624,0.00041095,14]
[341354842,1730825143895,-500.0,0.00041095,14]
[341354843,1730825143915,-500.0,0.00041095,14]
[341354844,1730825143936,-500.0,0.00041095,14]
[341354845,1730825143957,-500.0,0.00041095,14]
[341354846,1730825143980,-500.0,0.00041095,14]
[341354847,1730825144001,-500.0,0.00041095,14]
[341354848,1730825144022,-518.59820423,0.00041095,14]
[341354849,1730825144043,-500.0,0.00041095,14]
[341354850,1730825144064,-503.44653198,0.00041095,14]
[341354851,1730825144085,-500.0,0.00041095,14]
[341354852,1730825144105,-564.98569172,0.00041095,14]
[341354853,1730825144125,-508.98465787,0.00041095,14]
[341354854,1730825144145,-500.0,0.00041095,14]
[341354855,1730825144167,-500.0,0.00041095,14]
[341354856,1730825144189,-500.0,0.00041095,14]
[341354857,1730825144210,-500.0,0.00041095,14]
[341354858,1730825144234,-500.0,0.00041095,14]
[341354859,1730825144255,-500.0,0.00041095,14]
[341354860,1730825144276,-500.0,0.00041095,14]
[341354861,1730825144297,-500.0,0.00041095,14]
[341354862,1730825144319,-500.0,0.00041095,14]
[341354863,1730825144340,-503.93373326,0.00041095,14]
[341354864,1730825144361,-511.6846789,0.00041095,14]
[341354865,1730825144381,-513.85675799,0.00041095,14]
[341354866,1730825144476,-500.0,0.00041095,14]
[341354867,1730825144499,-500.0,0.00041095,14]
[341354868,1730825144520,-255.99943752,0.00041095,14]
[341354869,1730825144543,-500.0,0.00041095,14]
[341354870,1730825144565,-500.0,0.00041095,14]
[341354871,1730825144588,-500.0,0.00041095,14]
[341354872,1730825144608,-500.0,0.00041095,14]
[341354873,1730825144631,-500.16006235,0.00041095,14]
[341354874,1730825144652,-501.07870343,0.00041095,14]
[341354875,1730825144674,-501.23527806,0.00041095,14]
[341354876,1730825144702,-500.0,0.00041095,14]
[341354877,1730825144726,-500.0,0.00041095,14]
[341354878,1730825144747,-500.0,0.00041095,14]
[341354879,1730825144768,-529.6,0.00041095,14]
[341354880,1730825144790,-501.92571425,0.00041095,14]
[341354881,1730825144811,-385.96,0.00041095,14]
[341354882,1730825144834,-233.55495187,0.00041095,14]
[341354883,1730825144855,-500.0,0.00041095,14]
[341354884,1730825144876,-501.9837559,0.00041095,14]
[341354885,1730825144897,-510.76676673,0.00041095,14]
[341354886,1730825144918,-500.0,0.00041095,14]
[341354887,1730825144939,-500.0,0.00041095,14]
[341354888,1730825144962,-500.0,0.00041095,14]
[341354889,1730825144988,-500.0,0.00041095,14]
[341354890,1730825145010,-500.0,0.00041095,14]
[341354891,1730825145031,-505.6642154,0.00041095,14]
[341354892,1730825145053,-500.0,0.00041095,14]
[341354893,1730825145074,-500.0,0.00041095,14]
[341354894,1730825145097,-500.0,0.00041095,14]
[341354895,1730825145118,-500.0,0.00041095,14]
[341354896,1730825145139,-500.0,0.00041095,14]
[341354897,1730825145161,-500.0,0.00041095,14]
[341354898,1730825145184,-511.28198105,0.00041095,14]
[341354899,1730825145207,-500.0,0.00041095,14]
[341354900,1730825145237,-500.0,0.00041095,14]
[341354901,1730825145258,-500.0,0.00041095,14]
[341354902,1730825145279,-500.0,0.00041095,14]
[341354903,1730825145300,-500.0,0.00041095,14]
[341354904,1730825145320,-514.74934975,0.00041095,14]
[341354905,1730825145342,-152.18,0.00041095,14]
[341354906,1730825145364,-500.0,0.00041095,14]
[341354907,1730825145385,-500.0,0.00041095,14]
[341354908,1730825145406,-500.0,0.00041095,14]
[341354909,1730825145429,-500.0,0.00041095,14]
[341354910,1730825145452,-500.0,0.00041095,14]
[341354911,1730825145479,-500.0,0.00041095,14]
[341354912,1730825145503,-500.0,0.00041095,14]
[341354913,1730825145525,-500.0,0.00041095,14]
[341354914,1730825145562,-534.88554316,0.00041095,14]
[341354915,1730825145584,-500.0,0.00041095,14]
[341354916,1730825145607,-151.0,0.00041095,14]
[341354917,1730825145629,-507.84,0.00041095,14]
[341354918,1730825145653,-461.55271433,0.00041095,14]
[341354919,1730825145677,-500.0,0.00041095,14]
[341354920,1730825145700,-278.52607798,0.00041095,14]
[341354921,1730825145725,-509.50211494,0.00041095,14]
[341354922,1730825145747,-501.54412618,0.00041095,14]
[341354923,1730825145769,-500.0,0.00041095,14]
[341354924,1730825145791,-500.0,0.00041095,14]
[341354925,1730825145814,-500.0,0.00041095,14]
[341354926,1730825145837,-500.0,0.00041095,14]
[341354927,1730825145860,-500.0,0.00041095,14]
[341354928,1730825145881,-500.0,0.00041095,14]
[341354929,1730825145903,-610.64851256,0.00041095,14]
[341354930,1730825145926,-500.0,0.00041095,14]
[341354931,1730825145948,-500.0,0.00041095,14]
[341354932,1730825145972,-500.0,0.00041095,14]
[341354933,1730825145993,-500.0,0.00041095,14]
[341354934,1730825146014,-500.0,0.00041095,14]
[341354935,1730825146036,-500.0,0.00041095,120]
[341354936,1730825146057,-264.08718346,0.00041095,120]
[341354937,1730825146080,-500.0,0.00041095,14]
[341354938,1730825146105,-500.0,0.00041095,14]
[341354939,1730825146128,-585.62548276,0.00041095,14]
[341354940,1730825146150,-401.70332841,0.00041095,14]
[341354941,1730825146172,-500.0,0.00041095,14]
[341354942,1730825146195,-63.38038047,0.00041095,14]
[341354946,1730825229444,1470.80312547,0.00033882,30]
[341354947,1730825234103,-520.83333333,0.00024781,2]
[341354948,1730825234127,-156.18489857,0.00030296,2]
[341354949,1730825234152,-428.11472266,0.00033881,7]
[341354950,1730825248133,-71.88527734,0.00033881,7]
[341354951,1730825248155,-499.9910991,0.00033881,7]
[341354952,1730825249250,-0.0089009,0.00033881,7]
[341354953,1730825249273,-500.0,0.00033881,7]
[341354954,1730825249295,-607.24092227,0.00033881,7]
[341354955,1730825249319,-5000.0,0.00035,30]
[341354956,1730825249340,-293.47,0.000351,2]
[341354957,1730825249360,-1948.71508424,0.00038,30]
[341354958,1730825250108,-1051.28491576,0.00038,30]
[341354959,1730825250230,-4027.78397707,0.000382,109]
[341354960,1730825250252,-4027.78397703,0.000382,109]
[341354961,1730825250274,-4027.78397703,0.000382,109]
[341354962,1730825250296,-196.28,0.00039,2]
[341354963,1730825250319,-317.86168443,0.0003987,31]
[341354964,1730825250340,-246.32328982,0.00039871,119]
[341354965,1730825348132,-520.83333333,0.00022799,2]
[341354966,1730825350210,-234.13788025,0.00033889,7]
[341354967,1730825350235,-160.530949,0.00035559,2]
[341354968,1730825353886,520.83333333,0.00020816,2]
[341354969,1730825382140,264.12,0.000351,2]
[341354970,1730825415808,150.0,0.00033392,2]
[341354971,1730825428440,190.656,0.00033392,2]
[341355090,1730825435543,-7025.25273898,0.0003389,5]
[341355091,1730825435554,-357.5449,0.0003389,5]
[341355146,1730825438282,-1543.90020235,0.0003389,5]
[341355425,1730825440982,-412.59941135,0.0003389,5]
[341355427,1730825440991,-169.66652113,0.0003389,5]
[341355429,1730825441001,-10003.94,0.0003389,7]
[341355431,1730825441011,-3781.46068721,0.00039871,119]
[341355433,1730825441019,-157.27684093,0.00040995,28]
[341355435,1730825441029,-595.39171036,0.00041073,5]
[341355437,1730825441038,-311.57,0.00041085,10]
[341355439,1730825441048,-259.64,0.00041085,10]
[341355441,1730825441058,-216.37,0.00041085,10]
[341355443,1730825441068,-851.18913439,0.00041094,120]
[341355451,1730825441132,-176.65,0.00039,2]
[341355453,1730825441143,-147.81086561,0.00041094,120]
[341355455,1730825441152,-222.5031791,0.00041094,31]
[341355457,1730825441162,-436.61961953,0.00041095,14]
[341355459,1730825441171,-500.0,0.00041095,14]
[341355461,1730825441180,-500.0,0.00041095,14]
[341355463,1730825441190,-500.0,0.00041095,14]
[341355465,1730825441202,-650.65,0.00041095,14]
[341355467,1730825441211,-650.65,0.00041095,14]
[341355469,1730825441222,-650.65,0.00041095,14]
[341355471,1730825441233,-650.65,0.00041095,14]
[341355473,1730825441243,-650.65,0.00041095,14]
[341355474,1730825441253,-650.65,0.00041095,14]
[341355477,1730825441263,-571.90753243,0.00041095,14]
[341355479,1730825441272,-650.65,0.00041095,14]
[341355481,1730825441282,-650.65,0.00041095,14]
[341355483,1730825441291,-650.65,0.00041095,14]
[341355485,1730825441302,-650.65,0.00041095,14]
[341355487,1730825441312,-650.65,0.00041095,14]
[341355489,1730825441321,-510.43080568,0.00041095,14]
[341355491,1730825441331,-650.65,0.00041095,14]
[341355493,1730825441341,-650.65,0.00041095,14]
[341355494,1730825441350,-500.0,0.00041095,14]
[341355497,1730825441361,-151.0,0.00041095,14]
[341355498,1730825441370,-500.0,0.00041095,14]
[341355501,1730825441379,-500.0,0.00041095,14]
[341355502,1730825441388,-500.0,0.00041095,14]
[341355504,1730825441397,-500.0,0.00041095,14]
[341355506,1730825441407,-500.0,0.00041095,14]
[341355508,1730825441416,-503.51850181,0.00041095,14]
[341355510,1730825441425,-500.0,0.00041095,14]
[341355512,1730825441434,-622.2597647,0.00041095,14]
[341355515,1730825441445,-505.1406315,0.00041095,14]
[341355517,1730825441454,-500.0,0.00041095,14]
[341355519,1730825441465,-500.0,0.00041095,14]
[341355521,1730825441474,-383.67988444,0.00041095,14]
[341355523,1730825441483,-500.0,0.00041095,14]
[341355525,1730825441493,-505.84354874,0.00041095,14]
[341355527,1730825441502,-500.0,0.00041095,14]
[341355529,1730825441511,-500.0,0.00041095,14]
[341355531,1730825441521,-500.0,0.00041095,14]
[341355533,1730825441531,-504.324505,0.00041095,14]
[341355535,1730825441543,-635.98798192,0.00041095,14]
[341355537,1730825441553,-500.0,0.00041095,14]
[341355539,1730825441562,-500.0,0.00041095,14]
[341355541,1730825441571,-504.30783775,0.00041095,14]
[341355543,1730825441582,-617.06,0.00041095,14]
[341355545,1730825441591,-500.0,0.00041095,14]
[341355547,1730825441601,-500.0,0.00041095,14]
[341355549,1730825441613,-500.0,0.00041095,14]
[341355551,1730825441623,-500.0,0.00041095,14]
[341355553,1730825441632,-500.0,0.00041095,14]
[341355555,1730825441642,-500.0,0.00041095,14]
[341355557,1730825441651,-227.15968806,0.00041095,14]
[341355559,1730825441661,-502.89685684,0.00041095,14]
[341355561,1730825441670,-537.19,0.00041095,14]
[341355563,1730825441679,-599.34039062,0.00041095,14]
[341355565,1730825441689,-500.0,0.00041095,14]
[341355567,1730825441699,-504.13853399,0.00041095,14]
[341355569,1730825441709,-188.0,0.00041095,14]
[341355571,1730825441718,-312.0,0.00041095,14]
[341355573,1730825441731,-500.0,0.00041095,14]
[341355575,1730825441743,-500.0,0.00041095,14]
[341355577,1730825441753,-500.0,0.00041095,14]
[341355579,1730825441763,-500.0,0.00041095,14]
[341355581,1730825441772,-500.0,0.00041095,14]
[341355583,1730825441782,-500.0,0.00041095,14]
[341355584,1730825441792,-499.0,0.00041095,14]
[341355585,1730825441802,-500.0,0.00041095,14]
[341355586,1730825441811,-500.0,0.00041095,14]
[341355587,1730825441821,-500.53411376,0.00041095,14]
[341355588,1730825441905,-500.0,0.00041095,14]
[341355589,1730825441915,-500.0,0.00041095,14]
[341355590,1730825441925,-500.0,0.00041095,14]
[341355592,1730825441935,-500.0,0.00041095,14]
[341355594,1730825441945,-500.0,0.00041095,14]
[341355596,1730825441957,-500.0,0.00041095,14]
[341355598,1730825441967,-500.0,0.00041095,14]
[341355600,1730825441977,-620.2752158,0.00041095,14]
[341355602,1730825441987,-500.0,0.00041095,14]
[341355604,1730825441998,-585.34,0.00041095,14]
[341355606,1730825442007,-500.0,0.00041095,14]
[341355608,1730825442017,-500.0,0.00041095,14]
[341355610,1730825442027,-571.97935354,0.00041095,14]
[341355612,1730825442037,-500.0,0.00041095,14]
[341355614,1730825442047,-500.0,0.00041095,14]
[341355616,1730825442056,-2336.0,0.00041095,2]
[341355618,1730825442066,-2336.0,0.00041095,2]
[341355620,1730825442076,-2336.0,0.00041095,2]
[341355622,1730825442085,-2336.0,0.00041095,2]
[341355624,1730825442094,-2336.0,0.00041095,2]
[341355626,1730825442104,-2336.0,0.00041095,2]
[341355628,1730825442114,-500.0,0.00041095,14]
[341355630,1730825442124,-2336.0,0.00041095,2]
[341355632,1730825442133,-2336.0,0.00041095,2]
[341355634,1730825442142,-2336.0,0.00041095,2]
[341355636,1730825442152,-2336.0,0.00041095,2]
[341355638,1730825442161,-2336.0,0.00041095,2]
[341355640,1730825442170,-2336.0,0.00041095,2]
[341355642,1730825442179,-2336.0,0.00041095,2]
[341355644,1730825442189,-564.32016889,0.00041095,2]
[341355646,1730825442199,-500.0,0.00041095,14]
[341355648,1730825442209,-600.44291715,0.00041095,7]
[341355651,1730825442219,-154.407827,0.00041095,14]
[341355653,1730825442229,-500.0,0.00041095,14]
[341355655,1730825442239,-581.72,0.00041095,14]
[341355658,1730825442248,-511.73860284,0.00041095,14]
[341355660,1730825442258,-574.14378843,0.00041095,14]
[341355662,1730825442267,-500.0,0.00041095,14]
[341355664,1730825442277,-500.0,0.00041095,2]
[341355666,1730825442286,-500.0,0.00041095,2]
[341355668,1730825442296,-505.49044665,0.00041095,14]
[341355670,1730825442305,-500.0,0.00041095,14]
[341355673,1730825442314,-500.0,0.00041095,14]
[341355675,1730825442324,-530.16371184,0.00041095,14]
[341355677,1730825442333,-500.0,0.00041095,14]
[341355679,1730825442344,-541.06,0.00041095,14]
[341355681,1730825442353,-500.0,0.00041095,14]
[341355683,1730825442362,-500.0,0.00041095,14]
[341355685,1730825442371,-500.0,0.00041095,14]
[341355687,1730825442381,-508.76318269,0.00041095,14]
[341355689,1730825442390,-500.0,0.00041095,14]
[341355691,1730825442399,-503.61154595,0.00041095,14]
[341355693,1730825442409,-500.0,0.00041095,14]
[341355695,1730825442420,-500.0,0.00041095,14]
[341355697,1730825442429,-500.0,0.00041095,14]
[341355699,1730825442438,-500.0,0.00041095,14]
[341355701,1730825442451,-500.0,0.00041095,14]
[341355703,1730825442461,-500.0,0.00041095,14]
[341355705,1730825442470,-504.54248169,0.00041095,14]
[341355707,1730825442479,-345.8952898,0.00041095,14]
[341355709,1730825442489,-500.0,0.00041095,14]
[341355711,1730825442498,-500.0,0.00041095,14]
[341355713,1730825442507,-502.03105519,0.00041095,14]
[341355715,1730825442517,-500.0,0.00041095,14]
[341355717,1730825442526,-500.0,0.00041095,14]
[341355719,1730825442537,-500.0,0.00041095,14]
[341355721,1730825442548,-500.0,0.00041095,14]
[341355723,1730825442558,-507.96681606,0.00041095,14]
[341355725,1730825442568,-500.0,0.00041095,14]
[341355727,1730825442578,-500.0,0.00041095,14]
[341355729,1730825442587,-500.0,0.00041095,14]
[341355731,1730825442598,-500.0,0.00041095,14]
[341355733,1730825442608,-500.0,0.00041095,14]
[341355735,1730825442619,-500.0,0.00041095,14]
[341355737,1730825442630,-504.89929136,0.00041095,14]
[341355739,1730825442640,-200.0,0.00041095,14]
[341355741,1730825442650,-505.44015052,0.00041095,14]
[341355743,1730825442660,-500.0,0.00041095,14]
[341355745,1730825442669,-500.0,0.00041095,14]
[341355747,1730825442678,-291.39,0.00041095,14]
[341355749,1730825442688,-500.0,0.00041095,14]
[341355751,1730825442698,-500.0,0.00041095,14]
[341355753,1730825442707,-500.0,0.00041095,14]
[341355755,1730825442716,-503.1881658,0.00041095,14]
[341355757,1730825442725,-500.0,0.00041095,14]
[341355759,1730825442735,-500.0,0.00041095,14]
[341355761,1730825442744,-500.0,0.00041095,14]
[341355763,1730825442754,-500.0,0.00041095,14]
[341355765,1730825442764,-500.0,0.00041095,14]
[341355767,1730825442773,-500.0,0.00041095,14]
[341355769,1730825442782,-500.0,0.00041095,14]
[341355771,1730825442792,-500.0,0.00041095,14]
[341355773,1730825442802,-540.45,0.00041095,14]
[341355775,1730825442812,-503.58720575,0.00041095,14]
[341355777,1730825442821,-500.0,0.00041095,14]
[341355779,1730825442832,-507.71130015,0.00041095,14]
[341355781,1730825442842,-500.0,0.00041095,14]
[341355784,1730825442852,-500.0,0.00041095,14]
[341355786,1730825442862,-500.0,0.00041095,14]
[341355788,1730825442871,-501.31402908,0.00041095,14]
[341355790,1730825442880,-500.0,0.00041095,14]
[341355792,1730825442890,-500.0,0.00041095,14]
[341355794,1730825442901,-540.23,0.00041095,14]
[341355796,1730825442910,-500.0,0.00041095,14]
[341355798,1730825442919,-500.0,0.00041095,14]
[341355799,1730825442928,-500.0,0.00041095,14]
[341355802,1730825442938,-500.0,0.00041095,14]
[341355803,1730825442949,-500.0,0.00041095,14]
[341355805,1730825442959,-500.0,0.00041095,14]
[341355807,1730825442969,-526.33027285,0.00041095,14]
[341355809,1730825442978,-500.0,0.00041095,14]
[341355812,1730825442988,-500.0,0.00041095,14]
[341355814,1730825442998,-500.0,0.00041095,14]
[341355816,1730825443007,-500.0,0.00041095,14]
[341355818,1730825443017,-500.0,0.00041095,14]
[341355820,1730825443027,-500.0,0.00041095,14]
[341355822,1730825443037,-500.0,0.00041095,14]
[341355824,1730825443046,-500.0,0.00041095,14]
[341355826,1730825443057,-500.0,0.00041095,14]
[341355828,1730825443065,-513.34439507,0.00041095,14]
[341355830,1730825443075,-500.0,0.00041095,14]
[341355832,1730825443085,-318.14461587,0.00041095,14]
[341355834,1730825443095,-500.0,0.00041095,14]
[341355836,1730825443105,-500.0,0.00041095,14]
[341355838,1730825443115,-500.0,0.00041095,14]
[341355840,1730825443124,-500.0,0.00041095,14]
[341355842,1730825443134,-500.0,0.00041095,14]
[341355844,1730825443143,-500.0,0.00041095,14]
[341355846,1730825443153,-500.0,0.00041095,14]
[341355848,1730825443162,-500.0,0.00041095,14]
[341355850,1730825443172,-500.0,0.00041095,14]
[341355852,1730825443181,-500.0,0.00041095,14]
[341355854,1730825443190,-500.0,0.00041095,14]
[341355856,1730825443204,-500.0,0.00041095,14]
[341355858,1730825443213,-500.0,0.00041095,14]
[341355860,1730825443223,-500.0,0.00041095,14]
[341355862,1730825443232,-500.0,0.00041095,14]
[341355864,1730825443242,-500.0,0.00041095,14]
[341355866,1730825443251,-500.0,0.00041095,14]
[341355868,1730825443260,-500.0,0.00041095,14]
[341355870,1730825443269,-500.0,0.00041095,14]
[341355872,1730825443278,-500.0,0.00041095,14]
[341355874,1730825443287,-500.0,0.00041095,14]
[341355876,1730825443296,-502.71505502,0.00041095,14]
[341355878,1730825443305,-151.0,0.00041095,14]
[341355880,1730825443314,-500.0,0.00041095,14]
[341355882,1730825443323,-487.6,0.00041095,14]
[341355884,1730825443333,-1120.88,0.00041095,14]
[341355886,1730825443342,-1120.88,0.00041095,14]
[341355888,1730825443351,-1120.88,0.00041095,14]
[341355890,1730825443361,-1120.88,0.00041095,14]
[341355892,1730825443370,-1120.88,0.00041095,14]
[341355894,1730825443380,-1120.88,0.00041095,14]
[341355896,1730825443389,-1120.88,0.00041095,14]
[341355898,1730825443399,-144.84887353,0.00041095,14]
[341355908,1730825443484,-63.5418196,0.00041095,14]
[341355926,1730825443647,-912.48930687,0.00041095,14]
[341355928,1730825443657,-1120.88,0.00041095,14]
[341355930,1730825443666,-1120.88,0.00041095,14]
[341355932,1730825443676,-1120.88,0.00041095,14]
[341355934,1730825443686,-1120.88,0.00041095,14]
[341355936,1730825443699,-500.0,0.00041095,14]
[341355938,1730825443713,-1120.88,0.00041095,14]
[341355940,1730825443723,-16.51069313,0.00041095,14]
[341355942,1730825443735,-1104.36930687,0.00041095,14]
[341355944,1730825443745,-1120.88,0.00041095,14]
[341355946,1730825443755,-1120.88,0.00041095,14]
[341355948,1730825443765,-1120.88,0.00041095,14]
[341355950,1730825443775,-500.0,0.00041095,14]
[341355952,1730825443785,-500.0,0.00041095,14]
[341355955,1730825443795,-500.0,0.00041095,14]
[341355957,1730825443804,-500.0,0.00041095,14]
[341355958,1730825443813,-500.0,0.00041095,14]
[341355960,1730825443823,-408.40558885,0.00041095,14]
[341356115,1730825505903,328.24139016,0.00033889,7]
[341356116,1730825505930,225.31156478,0.00033889,7]
[341356117,1730825505957,500.0,0.00033889,7]
[341356118,1730825505983,557.81911691,0.00033889,7]
[341356119,1730825523297,1792.3376283,0.00035681,2]
[341356120,1730825609553,164.690155,0.00013973,2]
[341356121,1730825965276,520.83333333,0.00020816,2]
[341356123,1730826186662,165.090251,0.00013973,2]
[341356126,1730826436096,-165.090251,0.00029349,2]
[341356127,1730826436117,-30.62478927,0.00029965,2]
[341356128,1730826442092,-490.20854406,0.00029965,2]
[341356129,1730826442114,-325.51748783,0.00032453,2]
[341356130,1730826442135,-297.73,0.000356,2]
[341356131,1730826442157,-177.355306,0.0003583,2]
[341356132,1730826442178,-167.247924,0.00035981,120]
[341356133,1730826442202,-177.355306,0.00036515,2]
[341356134,1730826442227,-177.355306,0.000372,2]
[341356135,1730826442250,-805.55679543,0.000389,114]
[341356136,1730826442273,-30.83581987,0.00039,2]
[341356137,1730826451097,-128.14418013,0.00039,2]
[341356138,1730826451119,-805.5567954,0.0003965,118]
[341356139,1730826451142,-23.24330288,0.000404,120]
[341356140,1730826451401,-348.69086038,0.000404,120]
[341356142,1730826546169,-520.83333333,0.00023866,2]
[341356143,1730826546191,-292.67,0.00037,2]
[341356193,1730826631972,-150.0,0.00039,2]
[341356194,1730826631982,-1355.1051169,0.000399,30]
[341356195,1730826632060,-3644.8948831,0.000399,30]
[341356196,1730826632069,-433.62263214,0.000404,120]
[341356197,1730826632079,-322.04283319,0.00040995,28]
[341356198,1730826632089,-178.66213,0.00041,2]
[341356199,1730826632098,-180.31,0.00041085,10]
[341356200,1730826632108,-150.25,0.00041085,10]
[341356201,1730826632118,-751.3,0.00041085,10]
[341356202,1730826632128,-500.0,0.00041094,2]
[341356203,1730826632137,-999.0,0.00041094,120]
[341356204,1730826632154,-500.0,0.00041095,14]
[341356205,1730826632163,-500.0,0.00041095,14]
[341356206,1730826632173,-559.85593017,0.00041095,14]
[341356207,1730826632182,-500.0,0.00041095,14]
[341356208,1730826632191,-500.0,0.00041095,14]
[341356209,1730826632200,-500.0,0.00041095,14]
[341356210,1730826632210,-500.0,0.00041095,14]
[341356211,1730826632220,-500.0,0.00041095,14]
[341356212,1730826632233,-500.0,0.00041095,14]
[341356213,1730826632245,-500.0,0.00041095,14]
[341356214,1730826632255,-503.88505243,0.00041095,14]
[341356215,1730826632265,-500.0,0.00041095,14]
[341356216,1730826632274,-359.67148937,0.00041095,14]
[341356217,1730826632284,-508.30224949,0.00041095,14]
[341356218,1730826632294,-577.14,0.00041095,14]
[341356219,1730826632304,-509.7508883,0.00041095,14]
[341356220,1730826632315,-503.08788946,0.00041095,14]